Workbook

Sheet F.1.1 分部分项工程清单计价表(表-08)【安装工程】
A1: 2023年“C”项目水电安装分部分项工程量清单与计价表（第二次）
A2: 工程名称：2023年“C”项目水电安装工程
A3: 序号 | B3: 项目名称 | C3: 项目特征描述 | D3: 计量 单位 | E3: 工程量 | F3: 限价（元） | H3: 投标报价
F4: 综合单价 | G4: 合价 | H4: 税前综合单价组成（元） | K4: 税前综合单价 d=a+b+c | L4: 税金（9%） e=d*9% | M4: 含税全费用综合单价 f=d+e | N4: 含税合价
H5: 人工单价 (a) | I5: 材料单价 (b) | J5: 综合费（管理费、利润等） c=(a+b)*费率
B6: 给水工程
A7: 1 | B7: PPR管 DN20 | C7: 1.安装部位:室外，工作内容包含土石方开挖、回填及余方弃置，土石方综合考虑，不再额外计算土石方 2.输送介质:冷水 3.材质、型号规格、压力等级：PPR管 (DN20)De25 4.连接方式：热熔连接 5.水冲洗、水压试验、消毒符合设计及规范要求 6.管道、管件安装符合设计及规范要求 7.满足设计、规范及招标要求 | D7: m | E7: 820 | F7: =8.15+4+3.8 -> 15.95 | G7: =E7*F7 -> 13079 | J7: =(H7+I7)*0% -> 0 | K7: =H7+I7+J7 -> 0 | L7: =K7*0.09 -> 0 | M7: =K7+L7 -> 0 | N7: =E7*M7 -> 0 | O7: =8.15+4+3.8 -> 15.95
A8: 2 | B8: PPR DN25 | C8: 1.安装部位:室外，工作内容包含土石方开挖、回填及余方弃置，土石方综合考虑，不再额外计算土石方 2.输送介质:冷水 3.材质、型号规格、压力等级：PPR管 DN25（De32） 4.连接方式：热熔连接 5.水冲洗、水压试验、消毒符合设计及规范要求 6.管道、管件安装符合设计及规范要求 7.满足设计、规范及招标要求 | D8: m | E8: 337 | F8: =8.15+4+6.9 -> 19.05 | G8: 6419.85 | J8: =(H8+I8)*0% -> 0 | K8: =H8+I8+J8 -> 0 | L8: =K8*0.09 -> 0 | M8: =K8+L8 -> 0 | N8: =E8*M8 -> 0 | O8: =8.15+4+6.9 -> 19.05
A9: 3 | B9: PPR管 DN32 | C9: 1.安装部位:室外，工作内容包含土石方开挖、回填及余方弃置，土石方综合考虑，不再额外计算土石方 2.输送介质:冷水 3.材质、型号规格、压力等级：PPR管 DN32（De40） 4.连接方式：热熔连接 5.水冲洗、水压试验、消毒符合设计及规范要求 6.管道、管件安装符合设计及规范要求 7.满足设计、规范及招标要求 | D9: m | E9: 266 | F9: =8.15+4+10 -> 22.15 | G9: 5891.9 | J9: 0 | K9: 0 | L9: 0 | M9: 0 | N9: 0 | O9: =8.15+4+10 -> 22.15
A10: 4 | B10: PPR管 DN40 | C10: 1.安装部位:室外，工作内容包含土石方开挖、回填及余方弃置，土石方综合考虑，不再额外计算土石方 2.输送介质:冷水 3.材质、型号规格、压力等级：PPR管 DN40（De50） 4.连接方式：热熔连接 5.水冲洗、水压试验、消毒符合设计及规范要求 6.管道、管件安装符合设计及规范要求 7.满足设计、规范及招标要求 | D10: m | E10: 527 | F10: =8.98+4.5+15.51 -> 28.99 | G10: 15277.73 | J10: 0 | K10: 0 | L10: 0 | M10: 0 | N10: 0 | O10: =8.98+4.5+15.51 -> 28.99
A11: 5 | B11: PPR管 DN50 | C11: 1.安装部位:室外，工作内容包含土石方开挖、回填及余方弃置，土石方综合考虑，不再额外计算土石方 2.输送介质:冷水 3.材质、型号规格、压力等级：PPR管 DN50（De63） 4.连接方式：热熔连接 5.水冲洗、水压试验、消毒符合设计及规范要求 6.管道、管件安装符合设计及规范要求 7.满足设计、规范及招标要求 | D11: m | E11: 1050 | F11: =9.76+5+23.42 -> 38.18 | G11: 40089 | J11: 0 | K11: 0 | L11: 0 | M11: 0 | N11: 0 | O11: =9.76+5+23.42 -> 38.18
A12: 6 | B12: PPR管 DN65 | C12: 1.安装部位:室外，工作内容包含土石方开挖、回填及余方弃置，土石方综合考虑，不再额外计算土石方 2.输送介质:冷水 3.材质、型号规格、压力等级：PPR管 DN65（De75） 4.连接方式：热熔连接 5.水冲洗、水压试验、消毒符合设计及规范要求 6.管道、管件安装符合设计及规范要求 7.满足设计、规范及招标要求 | D12: m | E12: 370 | F12: =11.16+5+34.81 -> 50.97 | G12: 18858.9 | J12: 0 | K12: 0 | L12: 0 | M12: 0 | N12: 0 | O12: =11.16+5+34.81 -> 50.97
A13: 7 | B13: PPR管 DN80 | C13: 1.安装部位:室外，工作内容包含土石方开挖、回填及余方弃置，土石方综合考虑，不再额外计算土石方 2.输送介质:冷水 3.材质、型号规格、压力等级：PPR管 DN80（De90） 4.连接方式：热熔连接 5.水冲洗、水压试验、消毒符合设计及规范要求 6.管道、管件安装符合设计及规范要求 7.满足设计、规范及招标要求 | D13: m | E13: 482 | F13: =11.94+6+50.31 -> 68.25 | G13: 32896.5 | J13: 0 | K13: 0 | L13: 0 | M13: 0 | N13: 0 | O13: =11.94+6+50.31 -> 68.25
A14: 8 | B14: PPR管 DN100 | C14: 1.安装部位:室外，工作内容包含土石方开挖、回填及余方弃置，土石方综合考虑，不再额外计算土石方 2.输送介质:冷水 3.材质、型号规格、压力等级：PPR管 DN100（De110） 4.连接方式：热熔连接 5.水冲洗、水压试验、消毒符合设计及规范要求 6.管道、管件安装符合设计及规范要求 7.满足设计、规范及招标要求 | D14: m | E14: 3400 | F14: =13.43+6.5+74.3 -> 94.23 | G14: 320382 | J14: 0 | K14: 0 | L14: 0 | M14: 0 | N14: 0 | O14: =13.43+6.5+74.3 -> 94.23
A15: 9 | B15: PVC管 DN50 | C15: 1.安装部位:室外，工作内容包含土石方开挖、回填及余方弃置，土石方综合考虑，不再额外计算土石方 2.输送介质:冷水 3.材质、型号规格、压力等级：PVC管 DN50（主材甲供） 4.连接方式：热熔连接 5.水冲洗、水压试验、消毒符合设计及规范要求 6.管道、管件安装符合设计及规范要求 7.满足设计、规范及招标要求 | D15: m | E15: 55 | F15: 15 | G15: 825 | J15: 0 | K15: 0 | L15: 0 | M15: 0 | N15: 0
A16: 10 | B16: PPR管 DN100 | C16: 1.安装部位:室外，工作内容包含土石方开挖、回填及余方弃置，土石方综合考虑，不再额外计算土石方 2.输送介质:冷水 3.材质、型号规格、压力等级：PPR管 DN100（De110）（主材甲供） 4.连接方式：热熔连接 5.水冲洗、水压试验、消毒符合设计及规范要求 6.管道、管件安装符合设计及规范要求 7.满足设计、规范及招标要求 | D16: m | E16: 55 | F16: 17 | G16: 935 | J16: 0 | K16: 0 | L16: 0 | M16: 0 | N16: 0
A17: 11 | B17: 成品玻璃钢化粪池 12m³ | C17: 1、名称：12m³成品玻璃钢化粪池 2、其余未尽事宜详设计 3、土石方及垫层综合考虑进入报价中，不再额外计算 | D17: 个 | E17: 2 | F17: 6000 | G17: 12000 | J17: 0 | K17: 0 | L17: 0 | M17: 0 | N17: 0
A18: 12 | B18: 室外消火栓 | C18: 1.安装方式 ：地上式消火栓 2.型号、规格：详设计 3.附件材质、规格：详设计 | D18: 套 | E18: 6 | F18: 569 | G18: =E18*F18 -> 3414 | J18: 0 | K18: 0 | L18: 0 | M18: 0 | N18: 0
A19: 13 | B19: 水表 DN50 | C19: 1.安装部位（室内外） 2.型号、规格 ：详设计 3.连接形式 ：详设计 4.附件配置 | D19: 组 | E19: 2 | F19: 220 | G19: 440 | J19: 0 | K19: 0 | L19: 0 | M19: 0 | N19: 0
A20: 14 | B20: 倒流防止器 | C20: 1.名称： 倒流防止器 2.型号、规格 ：DN100 3.连接形式:详12S108-1-37图集 | D20: 套 | E20: 3 | F20: 260.84 | G20: 782.52 | J20: 0 | K20: 0 | L20: 0 | M20: 0 | N20: 0
A21: 15 | B21: 截止阀 DN20 | C21: 1.名称：截止阀DN20 2.材质：黄铜 3.型号、规格：DN20 4.连接方式：详设计 5.含安装配套附件 6.未尽事宜满足设计及现行技术、质量验收规范要求 | D21: 个 | E21: 30 | F21: 36.65 | G21: 1099.5 | J21: 0 | K21: 0 | L21: 0 | M21: 0 | N21: 0
A22: 16 | B22: 截止阀 DN25 | C22: 1.名称：截止阀 DN25 2.材质：黄铜 3.型号、规格：DN25 4.连接方式：详设计 5.含安装配套附件 6.未尽事宜满足设计及现行技术、质量验收规范要求 | D22: 个 | E22: 12 | F22: 41 | G22: 492 | J22: 0 | K22: 0 | L22: 0 | M22: 0 | N22: 0
A23: 17 | B23: 截止阀 DN32 | C23: 1.名称：截止阀 DN32 2.材质：黄铜 3.型号、规格：DN32 4.连接方式：详设计 5.含安装配套附件 6.未尽事宜满足设计及现行技术、质量验收规范要求 | D23: 个 | E23: 13 | F23: 45 | G23: 585 | J23: 0 | K23: 0 | L23: 0 | M23: 0 | N23: 0
A24: 18 | B24: 截止阀 DN40 | C24: 1.名称：截止阀 DN40 2.材质：黄铜 3.型号、规格：DN40 4.连接方式：详设计 5.含安装配套附件 6.未尽事宜满足设计及现行技术、质量验收规范要求 | D24: 个 | E24: 12 | F24: 82 | G24: 984 | J24: 0 | K24: 0 | L24: 0 | M24: 0 | N24: 0
A25: 19 | B25: 截止阀 DN50 | C25: 1.名称：截止阀 DN50 2.材质：黄铜 3.型号、规格：DN50 4.连接方式：详设计 5.含安装配套附件 6.未尽事宜满足设计及现行技术、质量验收规范要求 | D25: 个 | E25: 15 | F25: 112 | G25: 1680 | J25: 0 | K25: 0 | L25: 0 | M25: 0 | N25: 0
A26: 20 | B26: 截止阀 DN65 | C26: 1.名称：截止阀 DN65 2.材质：铸铁铜芯 3.型号、规格：DN65 4.连接方式：详设计 5.含安装配套附件 6.未尽事宜满足设计及现行技术、质量验收规范要求 | D26: 个 | E26: 10 | F26: 175 | G26: 1750 | J26: 0 | K26: 0 | L26: 0 | M26: 0 | N26: 0
A27: 21 | B27: 截止阀 DN80 | C27: 1.名称：截止阀 DN80 2.材质：铸铁铜芯 3.型号、规格：DN80 4.连接方式：详设计 5.含安装配套附件 6.未尽事宜满足设计及现行技术、质量验收规范要求 | D27: 个 | E27: 10 | F27: 258 | G27: 2580 | J27: 0 | K27: 0 | L27: 0 | M27: 0 | N27: 0
A28: 22 | B28: 截止阀 DN100 | C28: 1.名称：截止阀 DN100 2.材质：铸铁铜芯 3.型号、规格：DN100 4.连接方式：详设计 5.含安装配套附件 6.未尽事宜满足设计及现行技术、质量验收规范要求 | D28: 个 | E28: 10 | F28: 546.90 | G28: 5469 | J28: 0 | K28: 0 | L28: 0 | M28: 0 | N28: 0
A29: 23 | B29: 阀门井 | C29: 1.规格、尺寸：设计施工图 2.具体做法详设计： 5.防渗、防水要求：满足相关规范 6.其它：满足设计及施工验收规范要求 | D29: 座 | E29: 80 | F29: 380 | G29: 30400 | J29: 0 | K29: 0 | L29: 0 | M29: 0 | N29: 0
A30: 24 | B30: 分部小计
A31: 25 | B31: 排水工程
A32: 26 | B32: 管沟土方 | C32: 1.项目名称：挖沟槽、基坑土石方 2.土、石类别：综合 3.开挖深度：综合 4.开挖方式：投标人自行考虑 5.地上、地下管线及建筑物、构筑物的保护：投标人自行考虑 6.其余做法：满足设计及施工验收规范要求，并满足城管和环保要求 | D32: m3 | E32: =1410*0.8*0.7 -> 789.6 | F32: 10.8 | G32: =E32*F32 -> 8527.68 | J32: =(H32+I32)*0% -> 0 | K32: =H32+I32+J32 -> 0 | L32: =K32*0.09 -> 0 | M32: =K32+L32 -> 0 | N32: =E32*M32 -> 0
A33: 27 | B33: 回填方 | C33: 1.项目名称：沟槽回填土石方 2.回填料及密实度：满足设计及施工验收规范 3.回填料来源、场内外运距：投标人自行考虑 4.其余做法：满足设计及施工验收规范要求，并满足城管和环保要求 | D33: m3 | E33: =E32-E34 -> 663.9 | F33: 5.7 | G33: 3784.23 | J33: =(H33+I33)*0% -> 0 | K33: =H33+I33+J33 -> 0 | L33: =K33*0.09 -> 0 | M33: =K33+L33 -> 0 | N33: =E33*M33 -> 0
A34: 28 | B34: 余方弃置 | C34: 1.名称：余方弃置 2.废弃料品种：土石方综合 3.废弃料的运输方式、场内外运距、弃土场地及费用：投标人自行考虑，外弃场地必须满足当地相关行政主管部门的要求 4.其余做法：满足城管和环保要求 | D34: m3 | E34: 125.7 | F34: 6.3 | G34: 791.91 | J34: 0 | K34: 0 | L34: 0 | M34: 0 | N34: 0
A35: 29 | B35: HDPE中空增强双壁缠绕管 DN80 | C35: 1.安装部位：室外 2.介质：污水 3.材质、规格：HDPE中空增强双壁缠绕管 DN80 环刚度≥SN8 4.连接形式：承插连接 5.压力试验及吹、洗设计要求：按《建筑给水排水及采暖工程施工质量验收规范》(GB50242-2002)的要求做通球试验、灌水试验 6.管道、管件及支吊架安装满足设计及现行技术、质量验收规范要求 7.警示带形式：详设计 8.满足设计、规范及招标要求 | D35: m | E35: 330 | F35: 26.5 | G35: 8745 | J35: 0 | K35: 0 | L35: 0 | M35: 0 | N35: 0
A36: 30 | B36: HDPE中空增强双壁缠绕管 DN100 | C36: 1.安装部位：室外 2.介质：污水 3.材质、规格：HDPE中空增强双壁缠绕管 DN100 环刚度≥SN8 4.连接形式：承插连接 5.压力试验及吹、洗设计要求：按《建筑给水排水及采暖工程施工质量验收规范》(GB50242-2002)的要求做通球试验、灌水试验 6.管道、管件及支吊架安装满足设计及现行技术、质量验收规范要求 7.警示带形式：详设计 8.满足设计、规范及招标要求 | D36: m | E36: 920 | F36: 30.78 | G36: 28317.6 | J36: 0 | K36: 0 | L36: 0 | M36: 0 | N36: 0
A37: 31 | B37: HDPE中空增强双壁缠绕管 DN300 | C37: 1.安装部位：室外 2.介质：污水 3.材质、规格：HDPE中空增强双壁缠绕管 DN300 环刚度≥SN8 4.连接形式：承插连接 5.压力试验及吹、洗设计要求：按《建筑给水排水及采暖工程施工质量验收规范》(GB50242-2002)的要求做通球试验、灌水试验 6.管道、管件及支吊架安装满足设计及现行技术、质量验收规范要求 7.警示带形式：详设计 8.满足设计、规范及招标要求 | D37: m | E37: 32 | F37: 56.04 | G37: 1793.28 | J37: 0 | K37: 0 | L37: 0 | M37: 0 | N37: 0
A38: 32 | B38: HDPE中空增强双壁缠绕管 DN200（甲供材） | C38: 1.安装部位：室外 2.介质：污水 3.材质、规格：HDPE中空增强双壁缠绕管 DN200 环刚度≥SN8（甲供材） 4.连接形式：承插连接 5.压力试验及吹、洗设计要求：按《建筑给水排水及采暖工程施工质量验收规范》(GB50242-2002)的要求做通球试验、灌水试验 6.管道、管件及支吊架安装满足设计及现行技术、质量验收规范要求 7.警示带形式：详设计 8.满足设计、规范及招标要求 | D38: m | E38: 102 | F38: 20.2 | G38: 2060.4 | J38: 0 | K38: 0 | L38: 0 | M38: 0 | N38: 0
A39: 33 | B39: HDPE中空增强双壁缠绕管 DN200 | C39: 1.安装部位：室外 2.介质：污水 3.材质、规格：HDPE中空增强双壁缠绕管 DN200 环刚度≥SN8 4.连接形式：承插连接 5.压力试验及吹、洗设计要求：按《建筑给水排水及采暖工程施工质量验收规范》(GB50242-2002)的要求做通球试验、灌水试验 6.管道、管件及支吊架安装满足设计及现行技术、质量验收规范要求 7.警示带形式：详设计 8.满足设计、规范及招标要求 | D39: m | E39: 24 | F39: 35 | G39: 840 | J39: =(H39+I39)*0% -> 0 | K39: =H39+I39+J39 -> 0 | L39: =K39*0.09 -> 0 | M39: =K39+L39 -> 0 | N39: =E39*M39 -> 0
A40: 34 | B40: HDPE中空增强双壁缠绕管 DN500 | C40: 1.安装部位：室外 2.介质：污水 3.材质、规格：HDPE中空增强双壁缠绕管 DN500 环刚度≥SN8 4.连接形式：承插连接 5.压力试验及吹、洗设计要求：按《建筑给水排水及采暖工程施工质量验收规范》(GB50242-2002)的要求做通球试验、灌水试验 6.管道、管件及支吊架安装满足设计及现行技术、质量验收规范要求 7.警示带形式：详设计 8.满足设计、规范及招标要求 | D40: m | E40: 116 | F40: 122 | G40: 14152 | J40: 0 | K40: 0 | L40: 0 | M40: 0 | N40: 0
A41: 35 | B41: 分部小计
A42: 36 | B42: 道路排水
A43: 37 | B43: 管沟土方 | C43: 1.项目名称：挖沟槽、基坑土石方 2.土、石类别：综合 3.开挖深度：综合 4.开挖方式：投标人自行考虑 5.地上、地下管线及建筑物、构筑物的保护：投标人自行考虑 6.其余做法：满足设计及施工验收规范要求，并满足城管和环保要求 | D43: m3 | E43: 5968 | F43: 10.8 | G43: =E43*F43 -> 64454.4 | J43: 0 | K43: 0 | L43: 0 | M43: 0 | N43: 0
A44: 38 | B44: 回填方 | C44: 1.项目名称：沟槽回填土石方 2.回填料及密实度：满足设计及施工验收规范 3.回填料来源、场内外运距：投标人自行考虑 4.其余做法：满足设计及施工验收规范要求，并满足城管和环保要求 | D44: m3 | E44: 1039 | F44: 5.7 | G44: 5922.3 | J44: 0 | K44: 0 | L44: 0 | M44: 0 | N44: 0
A45: 39 | B45: 余方弃置 | C45: 1.名称：余方弃置 2.废弃料品种：土石方综合 3.废弃料的运输方式、场内外运距、弃土场地及费用：投标人自行考虑，外弃场地必须满足当地相关行政主管部门的要求 4.其余做法：满足城管和环保要求 | D45: m3 | E45: 1142 | F45: 6.3 | G45: 7194.6 | J45: 0 | K45: 0 | L45: 0 | M45: 0 | N45: 0
A46: 40 | B46: 混凝土管DN1000 | C46: 1.安装部位：室外 2.介质：污水 3.材质、规格：混凝土管DN1000（含垫层） 4.连接形式：承插连接 5.压力试验及吹、洗设计要求：按《建筑给水排水及采暖工程施工质量验收规范》(GB50242-2002)的要求做通球试验、灌水试验 6.管道、管件及支吊架安装满足设计及现行技术、质量验收规范要求 7.警示带形式：详设计 8.满足设计、规范及招标要求 | D46: m | E46: 115 | F46: 650 | G46: 74750 | J46: 0 | K46: 0 | L46: 0 | M46: 0 | N46: 0
A47: 41 | B47: 纤维增强聚丙烯(FRPP)加筋管 DN400 | C47: 1.安装部位：室外 2.介质：污水 3.材质、规格：纤维增强聚丙烯(FRPP)加筋管 DN400 4.连接形式：胶圈链接 5.压力试验及吹、洗设计要求：按《建筑给水排水及采暖工程施工质量验收规范》(GB50242-2002)的要求做通球试验、灌水试验 6.管道、管件及支吊架安装满足设计及现行技术、质量验收规范要求 7.警示带形式：详设计 8.满足设计、规范及招标要求 | D47: m | E47: 27.5 | F47: 68 | G47: 1870 | J47: 0 | K47: 0 | L47: 0 | M47: 0 | N47: 0
A48: 42 | B48: 纤维增强聚丙烯(FRPP)加筋管 DN500 | C48: 1.安装部位：室外 2.介质：污水 3.材质、规格：纤维增强聚丙烯(FRPP)加筋管 DN500 4.连接形式：胶圈链接 5.压力试验及吹、洗设计要求：按《建筑给水排水及采暖工程施工质量验收规范》(GB50242-2002)的要求做通球试验、灌水试验 6.管道、管件及支吊架安装满足设计及现行技术、质量验收规范要求 7.警示带形式：详设计 8.满足设计、规范及招标要求 | D48: m | E48: 41 | F48: 102 | G48: 4182 | J48: 0 | K48: 0 | L48: 0 | M48: 0 | N48: 0
A49: 43 | B49: 球墨铸铁管 DN300 | C49: 1.安装部位：室外 2.介质：污水 3.材质、规格：球墨铸铁管 DN300 4.连接形式：承插连接 5.压力试验及吹、洗设计要求：按《建筑给水排水及采暖工程施工质量验收规范》(GB50242-2002)的要求做通球试验、灌水试验 6.管道、管件及支吊架安装满足设计及现行技术、质量验收规范要求 7.警示带形式：详设计 8.满足设计、规范及招标要求 | D49: m | E49: 5 | F49: 111 | G49: 555 | J49: 0 | K49: 0 | L49: 0 | M49: 0 | N49: 0
A50: 44 | B50: 防冲刷卵石 | C50: 1.密实度：满足设计及规范要求 2.石料、规格：20~30mm卵石 3.运距：综合考虑 4.拌和、运输及拌合场摊销费用：综合报价 5.未尽事宜符合设计和规范要求 | D50: m3 | E50: 55 | F50: 180 | G50: 9900 | J50: =(H50+I50)*0% -> 0 | K50: =H50+I50+J50 -> 0 | L50: =K50*0.09 -> 0 | M50: =K50+L50 -> 0 | N50: =E50*M50 -> 0
A51: 45 | B51: 平箅式雨水口(双箅) | C51: 1.名称：雨水口 2.未尽事宜符合设计和规范要求 | D51: 座 | E51: 7 | F51: 620.00 | G51: 4340 | J51: 0 | K51: 0 | L51: 0 | M51: 0 | N51: 0
A52: 46 | B52: 砂垫层包封 | C52: 1.材料品种、规格：砂垫层 2.厚度： 3.其他：满足设计、绿色环保验收规范、城管及现行技术、质量验收规范要求 | D52: m3 | E52: 132 | F52: 195 | G52: 25740 | J52: 0 | K52: 0 | L52: 0 | M52: 0 | N52: 0
A53: 47 | B53: 分部小计
A54: 48 | B54: 电气工程
A55: 49 | B55: 管沟土方 | C55: 1.项目名称：挖沟槽、基坑土石方 2.土、石类别：综合 3.开挖深度：综合 4.开挖方式：投标人自行考虑 5.地上、地下管线及建筑物、构筑物的保护：投标人自行考虑 6.其余做法：满足设计及施工验收规范要求，并满足城管和环保要求 | D55: m3 | E55: 2565.00 | F55: 10.8 | G55: =E55*F55 -> 27702.00 | J55: 0 | K55: 0 | L55: 0 | M55: 0 | N55: 0
A56: 50 | B56: 回填方 | C56: 1.项目名称：沟槽回填土石方 2.回填料及密实度：满足设计及施工验收规范 3.回填料来源、场内外运距：投标人自行考虑 4.其余做法：满足设计及施工验收规范要求，并满足城管和环保要求 | D56: m3 | E56: 1035.00 | F56: 5.7 | G56: 5899.50 | J56: 0 | K56: 0 | L56: 0 | M56: 0 | N56: 0
A57: 51 | B57: 余方弃置 | C57: 1.名称：余方弃置 2.废弃料品种：土石方综合 3.废弃料的运输方式、场内外运距、弃土场地及费用：投标人自行考虑，外弃场地必须满足当地相关行政主管部门的要求 4.其余做法：满足城管和环保要求 | D57: m3 | E57: 1530.00 | F57: 6.3 | G57: 9639.00 | J57: 0 | K57: 0 | L57: 0 | M57: 0 | N57: 0
A58: 52 | B58: 150mm厚C15混凝土垫层 | C58: 1.混凝土种类： 商品混凝土C15（模板综合考虑） 2.混凝土强度等级:C15 | D58: m3 | E58: 156.77 | F58: 485 | G58: 76033.45 | J58: 0 | K58: 0 | L58: 0 | M58: 0 | N58: 0
A59: 53 | B59: 钢筋制作与安装 | C59: 1.钢筋种类、规格：综合（钢筋加工机械及辅材综合考虑） 2.钢筋连接：绑扎、焊接、机械连接由投标人综合考虑 3.弧形构件钢筋由投标人综合考虑，进入本项综合单价之中，不再单独计量计价 4.做法：满足设计及现行技术、质量验收规范要求 | D59: t | E59: 5.00 | F59: 5800 | G59: 29000.00 | J59: 0 | K59: 0 | L59: 0 | M59: 0 | N59: 0
A60: 54 | B60: C20混凝土包封 | C60: 1.混凝土种类： 商品混凝土C20（模板综合考虑） 2.混凝土强度等级:C20 | D60: m3 | E60: 295.60 | F60: 495 | G60: 146322.00 | J60: 0 | K60: 0 | L60: 0 | M60: 0 | N60: 0
A61: 55 | B61: CPVC 150电缆排管 | C61: 1.安装部位 ：室外 2.介质 3.材质、规格 CPVC 150电缆排管 4.连接形式 ：综合考虑 5.阻火圈设计要求 6.压力试验及吹、洗设计要求 7.警示带形式 | D61: m | E61: 7770.10 | F61: 27 | G61: 209792.70 | J61: 0 | K61: 0 | L61: 0 | M61: 0 | N61: 0
A62: 56 | B62: 电力电缆 WDBZ-YJY 5*16 | C62: 1.型号：铜芯电缆 WDBZ-YJY 5*16 2.规格 WDBZ-YJY 5*16 3.敷设方式：电缆敷设 4.电缆头：户内热缩式电缆头 三芯 1KV以下终端头 | D62: m | E62: 365.21 | F62: 70.28 | G62: 25666.96 | J62: 0 | K62: 0 | L62: 0 | M62: 0 | N62: 0
A63: 57 | B63: 电力电缆 WDBZ-YJY 5*10 | C63: 1.型号：铜芯电缆 WDBZ-YJY 5*10 2.规格 WDBZ-YJY 5*10 3.敷设方式：电缆敷设 4.电缆头：户内热缩式电缆头 五芯 1KV以下终端头 | D63: m | E63: 264.94 | F63: 48.42 | G63: 12828.39 | J63: 0 | K63: 0 | L63: 0 | M63: 0 | N63: 0
A64: 58 | B64: 电力电缆 WDBZ-YJY 4*25+1*16 | C64: 1.型号：铜芯电缆 WDBZ-YJY 4*25+1*16 2.规格 WDBZ-YJY 4*25+1*16 3.敷设方式：电缆敷设 4.电缆头：户内热缩式电缆头 五芯 1KV以下终端头 | D64: m | E64: 131.69 | F64: 102.27 | G64: 13467.94 | J64: 0 | K64: 0 | L64: 0 | M64: 0 | N64: 0
A65: 59 | B65: SC50 钢管 | C65: 1.安装部位 ：室外，工作内容包含土石方开挖、回填及余方弃置，土石方综合考虑，不再额外计算土石方 2.介质 3.材质、规格：SC50钢管 4.连接形式 ：综合考虑 5.阻火圈设计要求 6.压力试验及吹、洗设计要求 7.警示带形式 | D65: m | E65: 421.39 | F65: 43.45 | G65: 18309.40 | J65: =(H65+I65)*0% -> 0 | K65: =H65+I65+J65 -> 0 | L65: =K65*0.09 -> 0 | M65: =K65+L65 -> 0 | N65: =E65*M65 -> 0
A66: 60 | B66: SC40 钢管 | C66: 1.安装部位 ：室外，工作内容包含土石方开挖、回填及余方弃置，土石方综合考虑，不再额外计算土石方 2.介质 3.材质、规格：SC50钢管 4.连接形式 ：综合考虑 5.阻火圈设计要求 6.压力试验及吹、洗设计要求 7.警示带形式 | D66: m | E66: 305.70 | F66: 40.46 | G66: 12368.62 | J66: 0 | K66: 0 | L66: 0 | M66: 0 | N66: 0
A67: 61 | B67: SC65 钢管 | C67: 1.安装部位 ：室外，工作内容包含土石方开挖、回填及余方弃置，土石方综合考虑，不再额外计算土石方 2.介质 3.材质、规格：SC50钢管 4.连接形式 ：综合考虑 5.阻火圈设计要求 6.压力试验及吹、洗设计要求 7.警示带形式 | D67: m | E67: 151.95 | F67: 53.61 | G67: 8146.04 | J67: 0 | K67: 0 | L67: 0 | M67: 0 | N67: 0
A68: 62 | B68: 检查井 1000*1000 | C68: 1.规格、尺寸：1000*1000 2.具体做法详设计： 5.防渗、防水要求：满足相关规范 6.其它：满足设计及施工验收规范要求 | D68: 座 | E68: 37.00 | F68: 1500 | G68: 55500.00 | J68: 0 | K68: 0 | L68: 0 | M68: 0 | N68: 0
A69: 63 | B69: 景观照明
A70: 64 | B70: 配电箱 | C70: 1.名称：配电箱 ，工作内容包含土石方开挖、回填及余方弃置，土石方综合考虑，不再额外计算土石方 2.规格、型号：详设计 3.安装方式：详设计 4.本项目包括安装、箱柜开孔、防火封堵、盘柜二次配线、本体接地等 5.含柜体及柜内所有元器件等 6.为完成本项目安装的所有工作内容,其余满足设计、施工及供电验收等规范要求等费用综合考虑进入本项目综合单价中 | D70: 台 | E70: 1 | F70: 2191.13 | G70: =E70*F70 -> 2191.13 | J70: 0 | K70: 0 | L70: 0 | M70: 0 | N70: 0
A71: 65 | B71: 隔离变压器 AC220V DC24V | C71: 1.名称 隔离变压器 2.型号 AC220V DC24V 3.容量（kVA） ：详设计 4.电压（kV） ：详设计 | D71: 台 | E71: 16 | F71: 120.00 | G71: 1920 | J71: 0 | K71: 0 | L71: 0 | M71: 0 | N71: 0
A72: 66 | B72: 6m庭院灯 1*75w LED-220v | C72: 1.名称：6m庭院灯 1*75w LED-220v 防护等级IP65（甲供） 2.功率：1*75w LED-220v 3.高度：6米 4.安装包含灯具、灯杆、预埋件、基础、测试等 5.其它：未尽事宜均满足设计施工图和现行技术、质量验收规范和工程所在地行业主管部门相关标准 | D72: 套 | E72: 102 | F72: 188.25 | G72: 19201.5 | J72: 0 | K72: 0 | L72: 0 | M72: 0 | N72: 0
A73: 67 | B73: 4m庭院灯 1*60w LED-220v | C73: 1.名称：4m庭院灯 1*60w LED-220v 防护等级IP65（甲供） 2.功率：1*60w LED-220v 3.高度：4米 4.安装包含灯具、灯杆、预埋件、基础、测试等 5.其它：未尽事宜均满足设计施工图和现行技术、质量验收规范和工程所在地行业主管部门相关标准 | D73: 套 | E73: 158 | F73: 188.25 | G73: 29743.5 | J73: 0 | K73: 0 | L73: 0 | M73: 0 | N73: 0
A74: 68 | B74: 泛光灯 1*30w | C74: 1.名称: 泛光灯 1*30w 地面安装，防护等级IP65（甲供） 2.功率:30w 3.安装：包含灯具、灯杆、预埋件、基础、测试等 4.其它：未尽事宜均满足设计施工图和现行技术、质量验收规范和工程所在地行业主管部门相关标准 | D74: 套 | E74: 6 | F74: 92.83 | G74: 556.98 | J74: 0 | K74: 0 | L74: 0 | M74: 0 | N74: 0
A75: 69 | B75: 防水防尘吸顶灯 1*18w | C75: 1.名称: 防水防尘吸顶灯 1*18w地面安装，防护等级IP65（甲供） 2.功率:18w 3.安装：包含灯具、灯杆、预埋件、基础、测试等 4.其它：未尽事宜均满足设计施工图和现行技术、质量验收规范和工程所在地行业主管部门相关标准 | D75: 套 | E75: 7 | F75: 34.66 | G75: 242.62 | J75: 0 | K75: 0 | L75: 0 | M75: 0 | N75: 0
A76: 70 | B76: 地埋灯 1*9w | C76: 1.名称: 地埋灯 地面安装，防护等级IP65（甲供） 2.功率:9w 3.安装：包含灯具、灯杆、预埋件、基础、测试等 4.其它：未尽事宜均满足设计施工图和现行技术、质量验收规范和工程所在地行业主管部门相关标准 | D76: 套 | E76: 103 | F76: 42.7 | G76: 4398.1 | J76: 0 | K76: 0 | L76: 0 | M76: 0 | N76: 0
A77: 71 | B77: 地脚灯 1*3w | C77: 1.名称: 地脚灯 地面安装，防护等级IP65（甲供） 2.功率:3w 3.安装：包含灯具、灯杆、预埋件、基础、测试等 4.其它：未尽事宜均满足设计施工图和现行技术、质量验收规范和工程所在地行业主管部门相关标准 | D77: 套 | E77: 240 | F77: 38.59 | G77: 9261.6 | J77: 0 | K77: 0 | L77: 0 | M77: 0 | N77: 0
A78: 72 | B78: LED灯带 12w/m | C78: 1.名称：LED光带（甲供） 2.型号、规格：12w/m~DC24V 3.安装：包含灯具、灯杆、预埋件、基础、固定件、测试等 4.其它：未尽事宜均满足设计施工图和现行技术、质量验收规范和工程所在地行业主管部门相关标准 | D78: 套 | E78: 67 | F78: 18 | G78: 1206 | J78: 0 | K78: 0 | L78: 0 | M78: 0 | N78: 0
A79: 73 | B79: 路灯手孔井 400*400 | C79: 1.规格、尺寸：设计施工名图 2.具体做法详设计： 3.防渗、防水要求：满足相关规范 4.其它：满足设计及施工验收规范要求 | D79: 座 | E79: 260 | F79: 459.9 | G79: 119574 | J79: 0 | K79: 0 | L79: 0 | M79: 0 | N79: 0
A80: 74 | B80: 电力电缆 zr-YJV 3*10 | C80: 1.型号：铜芯电缆 zr-YJV 3*10 2.规格 zr-YJV 3*10 3.敷设方式：电缆敷设 4.电缆头：户内热缩式电缆头 三芯 1KV以下终端头 | D80: m | E80: 4431 | F80: 37.84 | G80: 167669.04 | J80: 0 | K80: 0 | L80: 0 | M80: 0 | N80: 0
A81: 75 | B81: 电力电缆 zr-YJV 3*16 | C81: 1.型号：铜芯电缆 zr-YJV 3*16 2.规格 zr-YJV 3*16 3.敷设方式：电缆敷设 4.电缆头：户内热缩式电缆头 三芯 1KV以下终端头 | D81: m | E81: 3020 | F81: 42.81 | G81: 129286.2 | J81: 0 | K81: 0 | L81: 0 | M81: 0 | N81: 0
A82: 76 | B82: 电气配管 PvC40 | C82: 1.名称:电气配管，工作内容包含土石方开挖、回填及余方弃置，土石方综合考虑，不再额外计算土石方 2.规格:PC40 3.材质:刚性阻燃管 4.敷设方式:综合 5.含支架制作安装，保护管敷设及接地跨接满足设计及规范要求 6.其他：满足设计、规范及招标要求 | D82: m | E82: 3020 | F82: 16 | G82: 48320 | J82: 0 | K82: 0 | L82: 0 | M82: 0 | N82: 0
A83: 77 | B83: 电气配管 PvC32 | C83: 1.名称:电气配管，工作内容包含土石方开挖、回填及余方弃置，土石方综合考虑，不再额外计算土石方 2.规格:PC32 3.材质:刚性阻燃管 4.敷设方式:综合 5.含支架制作安装，保护管敷设及接地跨接满足设计及规范要求 6.其他：满足设计、规范及招标要求 | D83: m | E83: 4431 | F83: 15.69 | G83: 69522.39 | J83: 0 | K83: 0 | L83: 0 | M83: 0 | N83: 0
A84: 78 | B84: 分部小计
A85: 合 计 | G85: =SUM(G7:G84) -> 2038020.36 | N85: =SUM(N7:N84) -> 0
A86: 报价说明：1、施工单位须按提供的报价格式要求及公式填报价格明细，未按提供格式填报价格明细、所报总价高于最高限价的均为无效报价，采购人不予接受。同时在工程量清单中公布最高全费用单价限价，施工班组的全费用综合单价也不得超过综合单价限价，否则，采购人将不予以接受。2、“人工单价（a）”是指完成本清单项每单位工程量所需的所有人工费用，“材料单价（b）”是指完成本清单项每单位工程量所需的材料费用，注明主材为甲供的清单项“材料单价（b）”一栏可填写为0，或仅报辅材材料价；
A87: 注：1.本次采用全费用单价报价形式，最高限价为2038020.36元，施工单位所报价高于最高限价的为无效报价，采购人不予接受。同时在工程量清单中公布最高费用单价限价，施工单位的全费用单价限价，施工单位的全费用单价也不得超过最高全费用单价限价，否则，采购人将予以拒绝。
A88: 2.最终结算时，以经审计单位核定的实际完成工程量及有效的竣工资料进行计算，全费用单价按中选的全费用单价进行计价。
A89: 3.开具的发票为增值税专票（税率为9%）。
F90: 报价单位：
F91: 委托代理人及电话：
F92: 时间：
